bitfinex-derivatives/quotes_ETHF0:USTF0_20251001
["timestamp","ask_amount","ask_price","bid_price","bid_amount"]
[1759357150225,3.16143978,4319.0,4318.9,0.00203548]
[1759357150421,8.16143978,4319.0,4318.9,0.00203548]
[1759357150724,8.16143978,4319.0,4318.9,0.24203548]
[1759357153525,9.35143978,4319.0,4318.9,0.24203548]
[1759357155826,8.16143978,4319.0,4318.9,0.24203548]
[1759357157425,8.8154243,4319.0,4318.9,0.00203548]
[1759357157620,0.2216,4317.5,4317.2,5.42776876]
[1759357157930,0.2216,4317.5,4317.0,36.116]
[1759357157931,1.77495,4317.1,4317.0,36.116]
[1759357158225,1.3582,4317.1,4317.0,0.24]
[1759357158621,1.36036885,4317.1,4317.0,0.24229432]
[1759357159029,1.77711885,4317.1,4317.0,0.24229432]
[1759357159725,1.77711885,4317.1,4317.0,0.00229432]
[1759357159921,1.77711885,4317.1,4317.0,0.24229432]
[1759357160116,1.36036885,4317.1,4317.0,0.63169432]
[1759357160624,0.96926885,4317.1,4317.0,1.59119432]
[1759357161918,1.62325337,4317.1,4317.0,1.59119432]
[1759357162724,2.01435337,4317.1,4317.0,1.59119432]
[1759357165530,2.43110337,4317.1,4317.0,1.59119432]
[1759357165829,2.01435337,4317.1,4317.0,1.59119432]
[1759357166026,2.43110337,4317.1,4317.0,1.02539432]
[1759357166533,1.77711885,4317.1,4317.0,0.63169432]
[1759357166729,1.77711885,4317.1,4317.0,0.00229432]
[1759357167033,0.2126,4316.0,4315.9,0.5462]
[1759357167236,1.483,4316.0,4315.9,1.4983]
[1759357167535,1.483,4316.0,4315.9,41.7521]
[1759357167735,1.483,4316.0,4315.9,41.5121]
[1759357167935,1.89985,4316.0,4315.9,41.7521]
[1759357168239,1.89985,4316.0,4315.9,41.04259409]
[1759357168436,1.89985,4316.0,4315.9,40.80259409]
[1759357168640,1.89985,4316.0,4315.9,41.04259409]
[1759357168826,1.89985,4316.0,4315.9,40.80259409]
[1759357169032,2.55383452,4316.0,4315.9,0.00259409]
[1759357169451,2.55383452,4316.0,4315.0,0.3525]
[1759357169452,0.41695,4315.1,4315.0,0.3525]
[1759357169640,5.54913452,4315.1,4315.0,0.5925]
[1759357169936,5.54913452,4315.1,4315.0,0.3525]
[1759357170132,5.54913452,4315.1,4315.0,0.24]
[1759357170435,5.54913452,4315.1,4315.0,0.2422082]
[1759357171626,5.13218452,4315.1,4315.0,0.2422082]
[1759357173738,4.4782,4315.1,4315.0,1.5005082]
[1759357173934,4.1215,4315.1,4315.0,2.15449272]
[1759357174140,4.1215,4315.1,4315.0,1.5005082]
[1759357174632,4.77548452,4315.1,4315.0,1.5005082]
[1759357175238,5.13218452,4315.1,4315.0,0.0022082]
[1759357175437,5.13218452,4315.1,4315.0,0.2422082]
[1759357175635,5.13218452,4315.1,4315.0,0.5947082]
[1759357176231,4.1215,4315.1,4315.0,1.5005082]
[1759357176435,3.2078,4315.1,4315.0,1.5005082]
[1759357176743,3.7622,4315.1,4315.0,1.5005082]
[1759357177235,0.5544,4315.1,4315.0,1.5005082]
[1759357177436,0.9137,4315.1,4315.0,1.5005082]
[1759357179137,1.2704,4315.1,4315.0,0.7143082]
[1759357179342,1.92438452,4315.1,4315.0,0.5947082]
[1759357179539,1.2704,4315.1,4315.0,0.9543082]
[1759357180337,1.2704,4315.1,4315.0,0.0022082]
[1759357180540,4.4782,4315.1,4315.0,0.2422082]
[1759357180845,4.4782,4315.1,4315.0,0.5947082]
[1759357181038,4.4782,4315.1,4315.0,0.9543082]
[1759357181439,4.4782,4315.1,4315.0,1.5005082]
[1759357182938,4.4782,4315.1,4315.0,0.9543082]
[1759357183542,0.41713,4313.1,4312.5,2.05973648]
[1759357183742,0.2126,4313.0,4312.6,1.65416876]
[1759357184050,0.767,4313.0,4312.9,41.66758652]
[1759357184249,0.767,4313.0,4312.9,41.85648652]
[1759357184442,0.5544,4313.4,4312.9,78.00048652]
[1759357184646,0.00194641,4313.0,4312.9,78.00348858]
[1759357185944,0.00194641,4313.0,4312.9,83.00348858]
[1759357187045,0.00194641,4313.0,4312.9,46.61948858]
[1759357187243,0.00194641,4313.0,4312.9,83.00748858]
[1759357190250,3.9748,4314.0,4313.9,0.7849]
[1759357190557,4.6908,4314.0,4313.9,0.539]
[1759357190750,4.6908,4314.0,4313.9,0.24]
[1759357191246,4.6932068,4314.0,4313.9,0.539]
[1759357191452,4.6932068,4314.0,4313.9,0.838]
[1759357193654,1.4854068,4314.0,4313.9,0.838]
[1759357194851,0.7694068,4314.0,4313.9,1.0353]
[1759357195052,1.1343068,4314.0,4313.9,0.838]
[1759357195657,0.5710068,4314.0,4313.9,41.8353]
[1759357198854,0.5710068,4314.0,4313.2,1.65416876]
[1759357198855,0.3706,4313.3,4313.2,1.65416876]
[1759357199054,1.528,4313.0,4312.9,0.02618858]
[1759357199260,1.528,4313.0,4312.9,0.26818858]
[1759357199553,4.7358,4313.0,4312.9,41.06818858]
[1759357200960,4.7358,4313.0,4312.9,40.82618858]
[1759357201156,4.7358,4313.0,4312.9,0.26818858]
[1759357204159,4.7358,4313.0,4312.9,0.02618858]
[1759357204356,9.7358,4313.0,4312.9,0.02618858]
[1759357204556,4.7358,4313.0,4312.9,0.58388858]
[1759357205360,4.7358,4313.0,4312.9,0.26818858]
[1759357210166,4.7358,4313.0,4312.9,0.58388858]
[1759357211167,4.7358,4313.0,4312.9,0.26818858]
[1759357217366,4.7358,4313.0,4312.9,0.89958858]
[1759357220670,4.3652,4313.0,4312.9,1.07938858]
[1759357220973,4.0003,4313.0,4312.9,1.07938858]
[1759357221766,0.7925,4313.0,4312.9,1.07938858]
[1759357222669,1.1538,4313.0,4312.9,1.07938858]
[1759357223673,1.1469,4313.0,4312.9,5.89958858]
[1759357224268,1.1469,4313.0,4312.9,46.69958858]
[1759357224669,0.7925,4313.0,4312.9,46.87748858]
[1759357226274,0.7925,4313.0,4312.9,48.53165734]
[1759357226471,0.7925,4313.0,4312.9,46.87748858]
[1759357226775,0.5686,4313.0,4312.9,48.53165734]
[1759357226973,0.5686,4313.0,4312.9,46.87748858]
[1759357227474,0.5686,4313.0,4312.9,48.53165734]
[1759357228368,0.5686,4313.0,4312.9,46.87748858]
[1759357228873,1.4746,4313.5,4313.4,0.5694]
[1759357229169,1.4746,4313.5,4313.4,0.8094]
[1759357232673,1.4746,4313.5,4313.4,0.5247]
[1759357234078,1.4746,4313.5,4313.4,0.24]
[1759357240579,1.4746,4313.5,4313.4,0.5247]
[1759357246885,1.4746,4313.5,4313.4,36.6827]
[1759357248381,1.4746,4313.5,4313.4,38.34299243]
[1759357251389,1.4746,4313.5,4313.4,36.6827]
[1759357251680,0.7718,4313.5,4313.4,37.63241778]
[1759357251881,0.5479,4313.5,4313.4,37.63241778]
[1759357252384,0.5479,4313.5,4313.4,80.49215426]
[1759357254184,0.5479,4313.5,4313.4,81.03106028]
[1759357254889,0.5479,4313.5,4313.4,80.37569838]
[1759357259192,0.5479,4313.5,4313.4,81.03106028]
[1759357259891,0.2263068,4314.0,4313.4,81.03106028]
[1759357259892,1.1033068,4314.0,4313.9,0.5082]
[1759357260093,1.1033068,4314.0,4313.9,3.06532594]
[1759357260294,1.1033068,4314.0,4313.9,3.22412594]
[1759357260486,1.1033068,4314.0,4313.9,44.02412594]
[1759357260789,1.1033068,4314.0,4313.9,43.86532594]
[1759357262288,3.74,4314.3,4313.9,44.02412594]
[1759357262593,4.1342,4315.0,4314.9,0.9372]
[1759357262784,4.1342,4315.0,4314.9,1.1772]
[1759357263494,4.13679895,4315.0,4314.9,1.1772]
[1759357264193,4.13679895,4315.0,4314.9,41.9772]
[1759357264585,4.66899895,4315.0,4314.9,41.9772]
[1759357266398,4.66899895,4315.0,4314.9,41.4156]
[1759357267392,4.66899895,4315.0,4314.9,41.9772]
[1759357269086,1.46119895,4315.0,4314.9,41.9772]
[1759357271887,1.46119895,4315.0,4314.9,41.7372]
[1759357272089,1.46119895,4315.0,4314.9,41.9772]
[1759357276591,1.24559895,4315.0,4314.9,41.9772]
[1759357278693,1.24559895,4315.0,4314.9,41.7372]
[1759357278896,1.46329895,4315.0,4314.9,41.039]
[1759357280697,1.46329895,4315.0,4314.9,41.603]
[1759357282193,1.24559895,4315.0,4314.9,41.603]
[1759357282796,0.87959895,4315.0,4314.9,41.603]
[1759357283603,0.00259895,4315.0,4314.9,42.2583619]
[1759357283803,0.00259895,4315.0,4314.9,41.603]
[1759357284101,0.9472,4315.7,4315.6,1.2799]
[1759357284295,0.9472,4315.7,4315.6,1.5189]
[1759357285103,0.94980186,4315.7,4315.6,1.5189]
[1759357285904,1.33080186,4315.7,4315.6,1.5189]
[1759357286603,1.33080186,4315.7,4315.6,1.2799]
[1759357286905,1.98616376,4315.7,4315.6,0.239]
[1759357288298,1.98616376,4315.7,4315.6,1.1511]
[1759357288710,1.98616376,4315.7,4315.6,1.5189]
[1759357289900,1.33080186,4315.7,4315.6,1.5189]
[1759357297806,0.94980186,4315.7,4315.6,1.5189]
[1759357299001,0.00260186,4315.7,4315.6,1.5189]
[1759357300505,0.00260186,4315.7,4315.6,3.17920098]
[1759357301000,3.2078,4316.3,4315.6,6.5189]
[1759357301203,3.2078,4316.3,4316.2,1.2799]
[1759357301204,3.7765,4316.3,4316.2,1.2799]
[1759357301406,3.7765,4316.3,4316.2,1.5189]
[1759357302010,3.77909216,4316.3,4316.2,1.52065525]
[1759357303604,0.00259216,4316.3,4316.2,1.52065525]
[1759357304107,0.57129216,4316.3,4316.2,1.52065525]
[1759357304298,0.94979216,4316.3,4316.2,1.52065525]
[1759357304708,0.00259216,4316.3,4316.2,1.52065525]
[1759357307210,0.00259216,4316.3,4316.2,42.32065525]
[1759357316217,0.00259216,4316.3,4316.2,43.09110121]
[1759357319314,3.2078,4316.8,4316.2,42.53590121]
[1759357319518,0.8797,4317.2,4317.1,1.2241]
[1759357319818,1.2473,4317.2,4317.1,0.239]
[1759357320312,1.25003483,4317.2,4317.1,0.239]
[1759357320506,1.25003483,4317.2,4317.1,0.5916]
[1759357320907,1.25003483,4317.2,4317.1,41.3916]
[1759357322607,2.02048079,4317.2,4317.1,40.8]
[1759357322811,2.02048079,4317.2,4317.1,41.039]
[1759357323411,1.25003483,4317.2,4317.1,41.039]
[1759357324012,2.02048079,4317.2,4317.1,41.039]
[1759357324917,2.02048079,4317.2,4317.1,0.239]
[1759357330521,2.43722079,4317.2,4317.1,0.239]
[1759357330717,2.02048079,4317.2,4317.1,0.239]
[1759357332320,1.25003483,4317.2,4317.1,0.239]
[1759357334727,2.02048079,4317.2,4317.1,0.239]
[1759357334927,1.25003483,4317.2,4317.1,0.239]
[1759357335114,1.25003483,4317.2,4317.1,1.1096]
[1759357335319,1.25003483,4317.2,4317.1,1.4631]
[1759357342628,0.88243483,4317.2,4317.1,2.23354596]
[1759357342832,0.51933483,4317.2,4317.1,2.23354596]
[1759357343028,0.00273483,4317.2,4317.1,1.4631]
[1759357344335,0.00273483,4317.2,4317.1,2.23354596]
[1759357344534,0.00273483,4317.2,4317.1,8.89241564]
[1759357345036,0.00273483,4317.2,4317.1,7.23354596]
[1759357346631,3.2078,4317.8,4317.1,7.23354596]
[1759357346836,3.7622,4317.8,4317.7,1.2161]
[1759357347031,3.7622,4317.8,4317.7,1.4551]
[1759357347229,3.7622,4317.8,4317.7,42.2551]
[1759357347636,3.76451681,4317.8,4317.7,42.2551]
[1759357348835,0.55671681,4317.8,4317.7,42.2551]
[1759357349538,0.00231681,4317.8,4317.7,43.02554596]
[1759357350437,0.00231681,4317.8,4317.7,42.2551]
[1759357357736,0.55671681,4317.8,4317.7,78.3771]
[1759357359429,0.55671681,4317.8,4317.4,0.5133]
[1759357359736,1.2812,4317.4,4317.3,0.356]
[1759357359935,1.2812,4317.4,4317.3,41.9073]
[1759357360833,1.2812,4317.4,4317.3,1.4541]
[1759357364336,1.2812,4317.4,4317.3,0.9408]
[1759357364743,1.2812,4317.4,4317.3,1.4541]
[1759357378045,1.2812,4317.4,4317.3,0.5133]
[1759357378246,0.5112,4317.3,4317.2,40.8]
[1759357378448,0.5112,4317.3,4317.2,41.038]
[1759357378946,0.3482,4316.9,4316.8,2.1728158]
[1759357379250,1.8420084,4316.9,4316.8,0.9419]
[1759357380450,1.1875,4316.9,4316.8,1.4594]
[1759357383348,3.2078,4317.3,4317.2,1.2214]
[1759357383555,3.2078,4317.3,4317.2,2.1139084]
[1759357384247,3.719,4317.3,4317.2,2.1139084]
[1759357384644,4.0672,4317.3,4317.2,2.1139084]
[1759357385049,0.8594,4317.3,4317.2,2.1139084]
[1759357388959,0.8594,4317.3,4317.2,1.4594]
[1759357389257,1.1875,4317.3,4317.2,1.4594]
[1759357389558,0.8866,4317.0,4316.9,0.8573]
[1759357389760,1.3978,4317.0,4316.9,1.0953]
[1759357392857,1.3978,4317.0,4316.9,1.4594]
[1759357393554,1.3978,4317.0,4316.8,36.126]
[1759357393761,1.3978,4317.0,4316.9,1.0953]
[1759357393960,1.3978,4317.0,4316.9,1.4594]
[1759357394459,1.1875,4317.0,4316.9,1.4594]
[1759357397969,1.3978,4317.0,4316.9,1.4594]
[1759357400077,1.3978,4317.0,4316.9,1.2214]
[1759357400277,1.3978,4317.0,4316.9,1.4594]
[1759357405978,1.3978,4317.0,4316.9,0.9419]
[1759357407175,0.6692,4316.7,4316.6,1.6553158]
[1759357407484,5.0678084,4316.7,4316.6,0.238]
[1759357408169,1.2055,4316.4,4316.2,1.65707105]
[1759357408376,1.8600084,4316.3,4316.2,0.00175525]
[1759357408576,1.8600084,4316.3,4316.2,0.23975525]
[1759357409475,1.8600084,4316.3,4316.2,0.65658525]
[1759357411070,1.8600084,4316.3,4316.2,0.99638525]
[1759357412482,1.2055,4316.3,4316.2,1.52368525]
[1759357413083,1.2055,4316.3,4316.2,1.84928525]
[1759357413375,0.5363,4316.3,4316.2,1.84928525]
[1759357413581,0.8767,4316.3,4316.2,1.84928525]
[1759357414280,3.5482,4316.7,4316.6,1.0822]
[1759357414481,3.2078,4317.2,4317.1,0.3398]
[1759357414782,3.2078,4317.2,4317.1,1.84745]
[1759357414979,3.2078,4317.2,4317.1,42.64745]
[1759357415675,0.8767,4317.4,4317.3,1.08213]
[1759357415983,0.8767,4317.4,4317.3,1.84743]
[1759357424885,0.5363,4317.4,4317.3,1.84743]
[1759357425287,3.21011681,4317.8,4317.7,0.41669]
[1759357425584,3.55051681,4317.8,4317.7,2.5018984]
[1759357425890,4.08681681,4317.8,4317.7,2.5018984]
[1759357429790,4.41561681,4317.8,4317.7,2.5018984]
[1759357430593,4.41561681,4317.8,4317.7,43.3018984]
[1759357431094,1.20781681,4317.8,4317.7,43.3018984]
[1759357431688,0.87901681,4317.8,4317.7,43.3018984]
[1759357432090,0.00231681,4317.8,4317.7,43.3018984]
[1759357432896,0.53861681,4317.8,4317.7,43.3018984]
[1759357434001,0.53861681,4317.8,4317.7,42.64739]
[1759357446198,0.00231681,4317.8,4317.7,42.64739]
[1759357446401,0.00231681,4317.8,4317.7,45.07280472]
[1759357447007,0.00231681,4317.8,4317.7,45.26092869]
[1759357447207,1e-08,4317.8,4317.7,50.26092869]
[1759357447907,1e-08,4317.8,4317.7,48.60561289]
[1759357449809,3.2078,4319.3,4319.1,0.41655]
[1759357450010,4.0649,4319.3,4319.2,1.4416]
[1759357450702,4.0677064,4319.3,4319.2,1.4416]
[1759357451408,4.0677064,4319.3,4319.2,2.21169892]
[1759357451705,3.7181064,4319.3,4319.2,2.21169892]
[1759357451906,4.0677064,4319.3,4319.2,2.21169892]
[1759357454307,4.0677064,4319.3,4319.2,1.4416]
[1759357454510,4.3962064,4319.3,4319.2,1.4416]
[1759357462917,4.3962064,4319.3,4319.2,1.85814]
[1759357463714,1.1884064,4319.3,4319.2,1.85814]
[1759357464717,1.1884064,4319.3,4319.2,1.62114]
[1759357464920,1.1884064,4319.3,4319.2,1.85814]
[1759357466917,1.1884064,4319.3,4319.0,40.8]
[1759357467117,1.1101,4319.2,4319.1,0.237]
[1759357467313,1.1101,4319.2,4319.1,0.65355]
[1759357467509,0.1964,4319.0,4318.7,41.21659]
[1759357467820,0.7854,4318.2,4318.1,36.52965]
[1759357468019,0.7854,4318.2,4318.1,36.76665]
[1759357468219,0.7854,4318.2,4318.1,77.56665]
[1759357469822,0.7854,4318.2,4318.1,41.45365]
[1759357470520,0.7854,4318.2,4318.1,40.8]
[1759357470716,0.7854,4318.2,4318.1,0.237]
[1759357470916,1.1101,4317.8,4317.7,36.9702]
[1759357471123,1.1101,4317.8,4317.7,36.6913]
[1759357471322,1.1101,4317.8,4317.7,78.0072]
[1759357471822,1.1101,4317.8,4317.7,41.3773]
[1759357473114,1.1101,4317.8,4317.7,41.1403]
[1759357473320,1.1101,4317.8,4317.7,41.3773]
[1759357473524,0.1964,4317.5,4317.4,0.5159]
[1759357473722,1.3065,4317.5,4317.4,1.4245]
[1759357474019,1.3065,4317.5,4317.4,42.2245]
[1759357474721,1.1101,4317.5,4317.4,42.2245]
[1759357480927,0.7946,4317.5,4317.4,42.2245]
[1759357481822,3.2078,4317.8,4317.7,1.1875]
[1759357482128,4.3179,4318.3,4318.2,1.1875]
[1759357482430,4.3179,4318.3,4318.2,1.4245]
[1759357482723,4.3179,4318.3,4317.9,0.5159]
[1759357482917,1.3065,4318.0,4317.9,0.3403]
[1759357483223,1.3065,4318.0,4317.9,0.5773]
[1759357484527,1.3065,4318.0,4317.9,1.0932]
[1759357485231,1.3065,4318.0,4317.9,0.5773]
[1759357485421,1.3065,4318.0,4317.9,1.0932]
[1759357487534,1.3065,4318.0,4317.9,1.4245]
[1759357489539,3.2078,4318.3,4318.1,1.1875]
[1759357489740,0.7946,4318.2,4318.1,1.1875]
[1759357489941,1.1101,4318.2,4318.1,1.4245]
[1759357491636,1.1101,4318.2,4318.1,0.237]
[1759357491837,1.1101,4318.2,4318.1,0.5773]
[1759357492037,1.1101,4318.2,4318.1,1.0932]
[1759357492239,1.1101,4318.2,4318.1,1.4245]
[1759357492942,0.7946,4318.2,4318.1,1.4245]
[1759357493641,1.1101,4318.2,4318.1,1.4245]
[1759357503960,3.6747,4318.3,4318.2,1.1235]
[1759357504148,3.6747,4318.3,4318.2,1.3595]
[1759357504344,3.9971,4318.3,4318.2,1.3595]
[1759357505756,4.3135,4318.3,4318.2,1.3595]
[1759357516357,3.2078,4318.3,4318.2,1.3595]
[1759357516762,3.2078,4318.3,4318.2,3.01483104]
[1759357516960,1.19,4318.4,4318.2,3.01483104]
[1759357517257,3.2078,4318.8,4318.5,0.1903]
[1759357517562,3.9971,4318.8,4318.7,1.1235]
[1759357517956,3.9971,4318.8,4318.7,41.9235]
[1759357519564,1.1057,4317.7,4317.6,1.66084801]
[1759357519857,0.6388,4316.7,4316.6,38.1891638]
[1759357520059,0.6388,4316.7,4316.6,36.356]
[1759357520060,4.96775535,4316.7,4316.6,36.356]
[1759357520259,4.96775535,4316.7,4316.3,40.8]
[1759357520260,0.1891,4316.5,4316.3,40.8]
[1759357520452,1.1057,4316.3,4315.7,0.4848]
[1759357520658,1.1057,4316.3,4316.2,0.23775525]
[1759357522465,0.3138,4315.2,4315.1,2.5744638]
[1759357522661,0.777,4314.7,4314.6,4.3618]
[1759357522857,1.0868,4315.4,4315.3,0.316]
[1759357523060,1.0868,4315.4,4315.3,0.552]
[1759357523462,1.08924603,4315.4,4315.3,0.55377822]
[1759357525869,1.08924603,4315.4,4315.3,0.23777822]
[1759357527168,1.74350138,4315.4,4315.3,0.23777822]
[1759357531072,1.08924603,4315.4,4315.3,0.23777822]
[1759357531369,1.74350138,4315.4,4315.3,0.23777822]
[1759357535772,2.16041138,4315.4,4315.3,0.23777822]
[1759357539378,3.35041138,4315.4,4315.3,0.23777822]
[1759357546579,6.55821138,4315.4,4315.3,0.23777822]
[1759357548981,6.14130138,4315.4,4315.3,0.23777822]
[1759357549180,6.14130138,4315.4,4315.3,1.04537822]
[1759357549583,2.93350138,4315.4,4315.3,0.23777822]
[1759357549885,6.55821138,4315.4,4315.3,0.23777822]
[1759357550578,6.14130138,4315.4,4315.3,0.23777822]
[1759357551279,6.65135153,4315.4,4315.3,0.23777822]
[1759357552777,3.44355153,4315.4,4315.3,0.23777822]
[1759357553981,3.86046153,4315.4,4315.3,0.23777822]
[1759357555886,3.44355153,4315.4,4315.3,0.23777822]
[1759357558193,3.86046153,4315.4,4315.3,0.23777822]
[1759357558491,3.9773866,4315.4,4315.3,0.23777822]
[1759357558993,3.5604766,4315.4,4315.3,0.23777822]
[1759357559992,3.9773866,4315.4,4315.3,0.23777822]
[1759357560193,3.5604766,4315.4,4315.3,0.23777822]
[1759357560690,2.78929618,4315.4,4315.3,1.37147822]
[1759357562087,2.78929618,4315.4,4315.3,0.89027822]
[1759357563190,1.59929618,4315.4,4315.3,0.89027822]
[1759357564185,1.59929618,4315.4,4315.3,1.37147822]
[1759357565193,1.5989415,4315.4,4315.3,1.37147822]
[1759357565394,1.08924603,4315.4,4315.3,1.37147822]
[1759357565699,0.77944603,4315.4,4315.3,1.37147822]
[1759357566392,1.09604603,4315.4,4315.3,1.37147822]
[1759357569398,0.77944603,4315.4,4315.3,1.37147822]
[1759357573694,1.09604603,4315.4,4315.3,1.37147822]
[1759357574796,1.09604603,4315.4,4315.3,0.89027822]
[1759357576300,1.09604603,4315.4,4315.3,0.55957822]
[1759357578599,1.09604603,4315.4,4315.3,1.04077822]
[1759357578802,1.09604603,4315.4,4315.3,1.37147822]
[1759357585203,1.09604603,4315.4,4315.3,0.89027822]
[1759357585408,1.09604603,4315.4,4315.3,1.33837822]
[1759357590012,1.09604603,4315.4,4315.3,1.10237822]
[1759357590214,1.09604603,4315.4,4315.3,1.33837822]
[1759357600415,0.00244603,4315.4,4315.3,1.33837822]
[1759357604424,0.00244603,4315.4,4315.3,6.33837822]
[1759357604922,0.00244603,4315.4,4315.3,49.20754202]
[1759357605821,0.4853,4316.2,4315.3,49.20754202]
[1759357606126,0.4853,4316.2,4316.1,1.0689]
[1759357606321,0.4853,4316.2,4316.1,1.3049]
[1759357606811,0.48740376,4316.2,4316.1,1.3049]
[1759357608115,0.00210376,4316.2,4316.1,2.07608042]
[1759357609621,0.00210376,4316.2,4316.1,2.49292042]
[1759357612326,0.00210376,4316.2,4316.1,4.15409072]
[1759357613321,0.00210376,4316.2,4316.1,44.95409072]
[1759357614428,3.2078,4317.1,4317.0,0.61]
[1759357614632,3.6418,4317.1,4317.0,1.2973]
[1759357615326,3.6418,4317.1,4317.0,1.4614]
[1759357615525,0.74893493,4317.1,4317.0,1.2973]
[1759357615826,0.74893493,4317.1,4317.0,1.48323636]
[1759357617330,0.74893493,4317.1,4317.0,1.2973]
[1759357617730,0.74893493,4317.1,4317.0,1.48413435]
[1759357619129,0.74893493,4317.1,4317.0,1.64823435]
[1759357619130,0.00203493,4317.1,4317.0,1.64823435]
[1759357620231,0.00203493,4317.1,4317.0,2.30250516]
[1759357620533,0.00203493,4317.1,4317.0,46.31030516]
[1759357622728,0.434,4317.8,4317.0,46.31030516]
[1759357622729,0.7469,4317.8,4317.7,0.61]
[1759357622928,0.7469,4317.8,4317.7,1.95157081]
[1759357623736,0.74866355,4317.8,4317.7,1.95157081]
[1759357625338,1.06686355,4317.8,4317.7,1.95157081]
[1759357627536,1.06686355,4317.8,4317.7,1.2973]
[1759357632039,1.06686355,4317.8,4317.7,1.95157081]
[1759357636545,0.74866355,4317.8,4317.7,1.95157081]
[1759357636753,3.6418,4318.6,4317.8,0.4523]
[1759357636952,0.434,4318.6,4318.5,1.71657081]
[1759357637256,0.7469,4318.6,4318.5,42.75157081]
[1759357637849,0.00172437,4318.6,4318.5,42.93805735]
[1759357638250,0.00172437,4318.6,4318.5,43.35466735]
[1759357638451,0.00172437,4318.6,4318.5,46.56246735]
[1759357642762,1.09259518,4318.6,4318.5,41.11488654]
[1759357643055,6.68979518,4318.6,4318.5,0.23708654]
[1759357643255,7.10639518,4318.6,4318.5,0.00208654]
[1759357643461,7.76066599,4318.6,4318.5,0.00208654]
[1759357643661,7.76066599,4318.6,4318.5,0.23708654]
[1759357643956,7.76066599,4318.6,4318.5,0.00208654]
[1759357644262,7.76066599,4318.6,4318.5,0.23708654]
[1759357645654,7.10639518,4318.6,4318.5,0.23708654]
[1759357648966,7.76066599,4318.6,4318.5,0.23708654]
[1759357649466,8.95066599,4318.6,4318.5,0.23708654]
[1759357649862,8.29639518,4318.6,4318.5,0.23708654]
[1759357651566,8.95066599,4318.6,4318.5,0.23708654]
[1759357651863,1.2361,4317.5,4317.4,3.4986]
[1759357652065,1.2361,4317.5,4317.4,4.4714]
[1759357652464,1.2361,4317.5,4317.4,1.2636]
[1759357652665,1.2361,4317.5,4317.4,1.26603137]
[1759357659369,1.2361,4317.5,4317.4,0.52823137]
[1759357662760,1.2361,4317.5,4317.4,0.29323137]
[1759357662959,1.2361,4317.5,4317.4,0.52823137]
[1759357664470,1.2361,4317.5,4317.4,0.96953137]
[1759357672379,1.2361,4317.5,4317.4,2.92289665]
[1759357675076,1.2361,4317.5,4317.4,0.52823137]
[1759357675276,1.65281,4317.5,4317.4,0.00243137]
[1759357675477,1.65281,4317.5,4317.4,0.23743137]
[1759357680288,2.42326793,4317.5,4317.4,0.23743137]
[1759357684688,1.2361,4317.5,4317.4,1.24643137]
[1759357684985,0.4307,4317.5,4317.4,1.24643137]
[1759357685182,1.44831,4317.5,4317.4,1.24643137]
[1759357685384,1.63051,4317.5,4317.4,0.80773137]
[1759357685585,1.63051,4317.5,4317.4,1.24643137]
[1759357686290,1.63051,4317.5,4317.4,0.52243137]
[1759357686989,1.63051,4317.5,4317.4,0.96113137]
[1759357687888,1.63051,4317.5,4317.4,0.52243137]
[1759357688088,2.40096793,4317.5,4317.4,0.23743137]
[1759357689586,2.40096793,4317.5,4317.4,1.24643137]
[1759357689781,1.98425793,4317.5,4317.4,0.80773137]
[1759357689982,1.98425793,4317.5,4317.4,0.52243137]
[1759357691191,2.40096793,4317.5,4317.4,0.52243137]
[1759357694096,2.40096793,4317.5,4317.4,0.23743137]
[1759357696695,5.60876793,4317.5,4317.4,0.23743137]
[1759357699504,5.60876793,4317.5,4317.4,0.52243137]
[1759357701993,5.60876793,4317.5,4317.4,0.23743137]
[1759357703095,0.1719,4317.0,4316.8,1.65686528]
[1759357703302,0.9899,4316.8,4316.6,1.65686528]
[1759357703503,0.9899,4316.8,4316.7,0.235]
[1759357704204,0.9899,4316.8,4316.7,0.23764684]
[1759357704596,0.9899,4316.8,4316.7,0.52284684]
[1759357708502,0.9899,4316.8,4316.7,0.00264684]
[1759357708503,1.40668,4316.8,4316.7,0.00264684]
[1759357708700,1.40668,4316.8,4316.7,0.23764684]
[1759357711200,0.9899,4316.8,4316.7,0.23764684]
[1759357711500,1.40668,4316.8,4316.7,0.23764684]
[1759357713407,0.9899,4316.8,4316.7,1.25594684]
[1759357714705,0.9899,4316.8,4316.7,0.81264684]
[1759357715407,1.40668,4316.8,4316.7,0.81264684]
[1759357716107,1.40668,4316.8,4316.7,0.52284684]
[1759357721608,0.7149,4316.8,4316.7,1.25594684]
[1759357721808,3.5095,4317.5,4317.4,1.0183]
[1759357722017,3.2078,4317.5,4317.4,1.2523]
[1759357722307,3.6458,4317.5,4317.4,42.0523]
[1759357722507,3.6458,4317.5,4317.4,1.2523]
[1759357722714,4.2442,4317.5,4317.4,1.2523]
[1759357722911,4.4125,4317.5,4317.4,0.809]
[1759357723115,4.4125,4317.5,4317.4,0.234]
[1759357723315,0.3017,4317.2,4317.1,0.2852]
[1759357723511,1.0364,4317.2,4317.1,0.234]
[1759357724210,1.45314,4317.2,4316.9,0.4433]
[1759357724411,3.3761,4317.5,4316.7,0.28784684]
[1759357724412,1.0364,4316.8,4316.7,0.28784684]
[1759357724615,1.0364,4316.8,4316.7,0.52184684]
[1759357724819,1.45318,4316.8,4316.7,0.23664684]
[1759357725115,1.45318,4316.8,4316.7,0.00264684]
[1759357725318,1.45318,4316.8,4316.7,0.23664684]
[1759357727406,1.45318,4316.8,4316.7,0.00264684]
[1759357727720,1.45318,4316.8,4316.7,0.23664684]
[1759357732016,1.0364,4316.8,4316.7,0.52184684]
[1759357733017,1.45318,4316.8,4316.7,0.52184684]
[1759357733213,1.45318,4316.8,4316.7,0.23664684]
[1759357740224,2.10802998,4316.8,4316.7,0.23664684]
[1759357741517,1.69124998,4316.8,4316.7,0.23664684]
[1759357742225,1.69124998,4316.8,4316.7,0.51774684]
[1759357745324,2.10802998,4316.8,4316.7,0.51774684]
[1759357746325,1.69124998,4316.8,4316.7,0.51774684]
[1759357746631,2.10802998,4316.8,4316.7,0.51774684]
[1759357747828,2.10802998,4316.8,4316.7,0.23664684]
[1759357749224,2.10802998,4316.8,4316.7,0.65343684]